fUST/lending_fUST_20251004
["ID","MTS","AMOUNT","RATE_DAILY","PERIOD"]
[388925131,1759509042131,-300.0,0.000287,2]
[388925132,1759509042141,-300.0,0.000287,2]
[388925133,1759509042152,-300.0,0.000287,2]
[388925134,1759509042163,-300.0,0.000287,2]
[388925135,1759509042173,-670.0,0.00028702,2]
[388925136,1759509042183,-331.0,0.00028754,2]
[388925137,1759509042192,-1003.98383699,0.00028768,5]
[388925138,1759509042203,-1000.0,0.0002888,15]
[388925139,1759509042214,-200.0,0.00028885,120]
[388925140,1759509042226,-2398.1693577,0.00028928,2]
[388925141,1759509042237,-168.0,0.00028939,2]
[388925142,1759509042247,-21513.87502507,0.00028958,2]
[388925143,1759509042260,-5000.0,0.00028958,21]
[388925144,1759509042271,-5000.0,0.00028958,22]
[388925145,1759509042282,-5000.0,0.00028958,21]
[388925146,1759509042291,-5000.0,0.00028958,20]
[388925147,1759509042301,-168.0,0.00028974,2]
[388925148,1759509042312,-306.0,0.00028988,30]
[388925149,1759509042322,-234.04758945,0.00029,7]
[388925150,1759509042332,-200.0,0.00029009,120]
[388925151,1759509042342,-13174.57145772,0.00029015,2]
[388925152,1759509042352,-1868.35786117,0.00029028,30]
[388925153,1759509042370,-3131.64213883,0.00029028,30]
[388925154,1759509042380,-500.0,0.00029041,10]
[388925155,1759509042391,-452.97674291,0.00029041,10]
[388925156,1759509042401,-2500.0,0.00029064,5]
[388925160,1759509042411,-2500.0,0.00029064,5]
[388925162,1759509042421,-1287.12031426,0.00029064,5]
[388925164,1759509042432,-200.0,0.0002908,120]
[388925166,1759509042443,-21981.77,0.000291,2]
[388925167,1759509042452,-168.0,0.00029101,2]
[388925168,1759509042463,-2734.845882,0.00029126,2]
[388925169,1759509042474,-168.0,0.00029148,2]
[388925171,1759509042484,-2500.0,0.00029164,5]
[388925173,1759509042494,-900.0,0.00029168,5]
[388925175,1759509042506,-450.0,0.00029168,5]
[388925177,1759509042517,-1360.0,0.00029175,2]
[388925179,1759509042527,-2859.5,0.00029181,4]
[388925181,1759509042538,-65945.31,0.000292,2]
[388925183,1759509042549,-151.0,0.000292,7]
[388925185,1759509042559,-176.597648,0.000292,7]
[388925188,1759509042571,-193.619592,0.000292,7]
[388925189,1759509042581,-193.619592,0.000292,7]
[388925191,1759509042592,-193.619592,0.000292,7]
[388925193,1759509042602,-193.619592,0.000292,7]
[388925195,1759509042614,-331.0,0.00029218,7]
[388925196,1759509042625,-4000.0,0.00029245,4]
[388925197,1759509042635,-800.0,0.00029297,2]
[388925198,1759509042646,-151.0,0.000293,120]
[388925199,1759509042657,-800.0,0.000293,2]
[388925200,1759509042672,-800.0,0.00029306,2]
[388925201,1759509042683,-206.82127497,0.00029307,2]
[388925202,1759509042694,-567.86,0.0002931,10]
[388925203,1759509042704,-151.0,0.00029316,2]
[388925204,1759509042716,-151.0,0.00029316,2]
[388925205,1759509042727,-151.0,0.00029316,2]
[388925206,1759509042739,-500.0,0.00029316,2]
[388925207,1759509042750,-151.0,0.00029316,2]
[388925208,1759509042760,-287.94012382,0.00029316,2]
[388925209,1759509042771,-151.0,0.00029316,2]
[388925210,1759509042783,-246.43139057,0.00029316,2]
[388925211,1759509042794,-500.0,0.00029316,2]
[388925212,1759509042804,-151.0,0.00029316,2]
[388925213,1759509042817,-151.0,0.00029316,2]
[388925214,1759509042831,-481.0,0.00029316,2]
[388925215,1759509042860,-151.19922181,0.00029316,2]
[388925216,1759509042872,-205.63281683,0.00029316,2]
[388925217,1759509042882,-500.0,0.00029324,11]
[388925218,1759509042894,-500.0,0.00029329,2]
[388925219,1759509042908,-200.54097755,0.00029329,10]
[388925220,1759509042920,-151.0,0.0002933,7]
[388925221,1759509042931,-500.0,0.0002933,10]
[388925222,1759509042942,-500.0,0.0002933,10]
[388925223,1759509042954,-500.0,0.00029347,11]
[388925224,1759509042965,-200.0,0.00029357,120]
[388925225,1759509042977,-508.08123487,0.00029373,2]
[388925226,1759509042988,-500.0,0.00029373,5]
[388925227,1759509042998,-500.0,0.00029373,5]
[388925228,1759509043008,-193.446782,0.000294,2]
[388925229,1759509043019,-952339.69750329,0.0002944,2]
[388925254,1759509044106,-339.1250319,0.00023,2]
[388925256,1759509044120,-702.54163477,0.00023,2]
[388925258,1759509044130,-1805.78067391,0.00023556,2]
[388925260,1759509044142,-346.21932609,0.00023556,2]
[388925262,1759509044151,-271.614705,0.0002699,7]
[388925264,1759509044161,-151.0,0.0002699,7]
[388925266,1759509044170,-271.614705,0.0002699,7]
[388925268,1759509044180,-151.0,0.0002699,7]
[388925270,1759509044190,-9.81026623,0.0002699,7]
[388925276,1759509044233,-1041.66666667,0.00026,30]
[388925282,1759509044360,-261.80443877,0.0002699,7]
[388925283,1759509044406,-271.614705,0.0002699,7]
[388925284,1759509044417,-151.0,0.000275,7]
[388925285,1759509044429,-151.189028,0.000275,7]
[388925286,1759509044440,-271.614705,0.000275,7]
[388925288,1759509044450,-151.0,0.000275,7]
[388925290,1759509044461,-271.614705,0.000275,7]
[388925292,1759509044471,-151.0,0.000275,7]
[388925294,1759509044482,-271.614705,0.000275,7]
[388925296,1759509044492,-271.614705,0.000275,7]
[388925298,1759509044501,-151.0,0.00027512,7]
[388925300,1759509044512,-151.189028,0.00027512,7]
[388925302,1759509044522,-271.614705,0.00027512,7]
[388925304,1759509044532,-151.0,0.00027512,7]
[388925306,1759509044541,-271.614705,0.00027512,7]
[388925308,1759509044552,-258.945562,0.00027512,7]
[388925310,1759509044562,-271.614705,0.00027512,7]
[388925312,1759509044572,-271.614705,0.00027512,7]
[388925314,1759509044582,-151.0,0.00028,7]
[388925316,1759509044593,-151.189028,0.00028,7]
[388925318,1759509044603,-151.0,0.00028,7]
[388925319,1759509044614,-151.18903395,0.00028,7]
[388925320,1759509044626,-271.614705,0.00028,7]
[388925321,1759509044637,-271.614705,0.00028,7]
[388925322,1759509044647,-151.0,0.00028,7]
[388925323,1759509044659,-271.614705,0.00028,7]
[388925324,1759509044670,-151.0,0.00028,7]
[388925325,1759509044681,-271.614705,0.00028,7]
[388925326,1759509044691,-271.614705,0.00028,7]
[388925327,1759509044701,-271.614705,0.00028,7]
[388925328,1759509044712,-271.614705,0.00028,7]
[388925329,1759509044722,-3944.89,0.000289,2]
[388925330,1759509044731,-17256.49474212,0.0002944,2]
[388925331,1759509044749,-6811.47732219,0.0002944,2]
[388925332,1759509044762,-11311.35386219,0.0002944,2]
[388925333,1759509044776,-2888.48717198,0.0002944,2]
[388925334,1759509044788,-8582.65082951,0.0002944,2]
[388925335,1759509044801,-809.83856872,0.0002944,2]
[388925336,1759509044812,-151.0,0.0002944,7]
[388925337,1759509044825,-151.0,0.0002944,7]
[388925338,1759509044836,-193.619592,0.0002944,7]
[388925339,1759509044849,-193.619592,0.0002944,7]
[388925340,1759509044860,-193.619592,0.0002944,7]
[388925341,1759509044872,-193.619592,0.0002944,7]
[388925342,1759509044882,-5000.0,0.0002945,10]
[388925343,1759509044892,-229.87255725,0.0002947,20]
[388925344,1759509044906,-152.89581645,0.000295,120]
[388925345,1759509044916,-168.0,0.00029571,2]
[388925346,1759509044929,-13174.57145772,0.00029573,2]
[388925347,1759509044938,-245.0,0.0002959,2]
[388925348,1759509044948,-245.0,0.0002959,2]
[388925349,1759509044958,-151.0,0.0002959,2]
[388925350,1759509044969,-500.0,0.0002959,2]
[388925351,1759509044978,-151.0,0.0002959,2]
[388925352,1759509044989,-500.0,0.0002959,2]
[388925353,1759509044999,-257.55649836,0.0002959,2]
[388925354,1759509045009,-481.0,0.0002959,2]
[388925355,1759509045018,-500.0,0.00029604,10]
[388925356,1759509045028,-3000.0,0.00029612,5]
[388925357,1759509045038,-3000.0,0.00029612,5]
[388925358,1759509045047,-331.0,0.00029614,2]
[388925359,1759509045057,-3000.0,0.00029712,5]
[388925360,1759509045066,-1200.0,0.00029716,5]
[388925361,1759509045077,-450.0,0.00029716,5]
[388925362,1759509045087,-165.92199904,0.00029723,2]
[388925363,1759509045096,-200.0,0.00029743,120]
[388925364,1759509045106,-880.27,0.000298,30]
[388925365,1759509045117,-160.0,0.000298,30]
[388925366,1759509045129,-443.0,0.00029864,2]
[388925367,1759509045139,-174.63566436,0.00029864,2]
[388925368,1759509045149,-500.0,0.00029864,2]
[388925369,1759509045159,-481.0,0.00029864,2]
[388925370,1759509045169,-500.0,0.00029878,10]
[388925371,1759509045178,-207.6725078,0.00029916,30]
[388925372,1759509045188,-297.3661479,0.00029916,30]
[388925373,1759509045198,-162.5876315,0.00029916,30]
[388925374,1759509045208,-587.3710559,0.00029916,30]
[388925375,1759509045217,-153.0,0.00029916,30]
[388925376,1759509045227,-297.3661479,0.00029916,30]
[388925377,1759509045238,-162.5876315,0.00029916,30]
[388925378,1759509045249,-189.4176396,0.00029916,30]
[388925379,1759509045263,-587.3710559,0.00029916,30]
[388925380,1759509045275,-153.0,0.00029916,30]
[388925381,1759509045285,-500.0,0.00029921,5]
[388925382,1759509045294,-500.0,0.00029973,5]
[388925383,1759509045303,-250.0,0.0003,7]
[388925384,1759509045313,-100000.0,0.0003,26]
[388925385,1759509045323,-405.7903421,0.0003,10]
[388925386,1759509045333,-7276.03985451,0.0003,2]
[388925387,1759509045343,-36346.63287857,0.0003,15]
[388925390,1759509045579,-28475.31915965,0.0003,15]
[388925391,1759509045590,-3028.94971413,0.0003,15]
[388925392,1759509045599,-7128.20498522,0.0003,2]
[388925401,1759509045734,-1041.66666667,0.00026,10]
[388925403,1759509045744,-271.614696,0.00028,7]
[388925405,1759509045754,-18871.79501478,0.0003,2]
[388925407,1759509045764,-1577.03903012,0.0003,10]
[388925409,1759509045774,-620.82793119,0.0003,30]
[388925411,1759509045783,-165.46,0.0003,5]
[388925413,1759509045793,-524.43532505,0.0003,2]
[388925415,1759509045802,-158.96143567,0.0003,60]
[388925417,1759509045811,-30000.0,0.0003,10]
[388925418,1759509045822,-30000.0,0.0003,10]
[388925421,1759509045837,-10433.0,0.0003,30]
[388925422,1759509045847,-752.0,0.0003,15]
[388925425,1759509045857,-10000.0,0.0003,10]
[388925427,1759509045869,-654.69311278,0.0003,2]
[388925429,1759509045878,-512.95589946,0.0003,60]
[388925431,1759509045887,-3831.18055364,0.0003,2]
[388925432,1759509045897,-160.0,0.0003,10]
[388925434,1759509045907,-293.47406221,0.0003,30]
[388925436,1759509045916,-293.47406221,0.0003,10]
[388925439,1759509045926,-205.011805,0.0003,7]
[388925441,1759509045935,-151.0,0.0003,7]
[388925442,1759509045945,-234.04758945,0.0003,10]
[388925444,1759509045955,-2062.35734863,0.0003,120]
[388925447,1759509045965,-193.619592,0.0003,7]
[388925448,1759509045974,-193.619592,0.0003,7]
[388925450,1759509045983,-193.619592,0.0003,7]
[388925452,1759509045992,-193.619592,0.0003,7]
[388925454,1759509046002,-1522.507298,0.0003,2]
[388925456,1759509046012,-54164.39727254,0.00030023,13]
[388925458,1759509046021,-168.0,0.00030026,2]
[388925460,1759509046030,-1715.52409556,0.00030037,2]
[388925462,1759509046040,-2000.0,0.00030068,7]
[388925464,1759509046050,-284.90436841,0.0003013,2]
[388925466,1759509046059,-860.99721054,0.0003013,15]
[388925468,1759509046068,-193.619592,0.0003013,7]
[388925470,1759509046078,-193.619592,0.0003013,7]
[388925472,1759509046087,-193.619592,0.0003013,7]
[388925474,1759509046096,-193.619592,0.0003013,7]
[388925476,1759509046105,-13174.57145772,0.0003013,2]
[388925478,1759509046114,-293.47406221,0.00030136,120]
[388925480,1759509046125,-293.47406221,0.00030136,7]
[388925482,1759509046135,-500.0,0.00030136,120]
[388925484,1759509046145,-500.0,0.00030136,120]
[388925486,1759509046154,-500.0,0.00030136,120]
[388925488,1759509046166,-500.0,0.00030136,120]
[388925490,1759509046176,-500.0,0.00030136,120]
[388925492,1759509046185,-500.0,0.00030136,120]
[388925494,1759509046195,-500.0,0.00030136,120]
[388925496,1759509046204,-500.0,0.00030136,120]
[388925498,1759509046213,-500.0,0.00030136,120]
[388925500,1759509046225,-500.0,0.00030136,120]
[388925503,1759509046235,-500.0,0.00030136,120]
[388925505,1759509046244,-448.53,0.00030136,120]
[388925507,1759509046254,-901.67,0.00030136,120]
[388925509,1759509046263,-901.67,0.00030136,120]
[388925511,1759509046272,-901.67,0.00030136,120]
[388925512,1759509046282,-901.67,0.00030136,120]
[388925513,1759509046292,-901.67,0.00030136,120]
[388925514,1759509046301,-901.67,0.00030136,120]
[388925515,1759509046311,-901.67,0.00030136,120]
[388925516,1759509046320,-901.67,0.00030136,120]
[388925517,1759509046329,-901.67,0.00030136,120]
[388925518,1759509046338,-901.67,0.00030136,120]
[388925519,1759509046347,-901.67,0.00030136,120]
[388925520,1759509046357,-901.67,0.00030136,120]
[388925521,1759509046367,-901.67,0.00030136,120]
[388925522,1759509046377,-901.67,0.00030136,120]
[388925523,1759509046386,-901.67,0.00030136,120]
[388925524,1759509046395,-901.67,0.00030136,120]
[388925525,1759509046405,-901.67,0.00030136,120]
[388925526,1759509046414,-901.67,0.00030136,120]
[388925527,1759509046423,-901.67,0.00030136,120]
[388925528,1759509046432,-901.67,0.00030136,120]
[388925529,1759509046442,-901.67,0.00030136,120]
[388925530,1759509046451,-901.67,0.00030136,120]
[388925531,1759509046460,-901.67,0.00030136,120]
[388925532,1759509046469,-901.89354263,0.00030136,120]
[388925533,1759509046479,-500.0,0.00030136,2]
[388925534,1759509046489,-500.0,0.00030136,2]
[388925535,1759509046498,-500.0,0.00030136,2]
[388925536,1759509046507,-500.0,0.00030136,2]
[388925537,1759509046517,-500.0,0.00030136,2]
[388925538,1759509046669,-500.0,0.00030136,2]
[388925539,1759509046682,-500.0,0.00030136,2]
[388925540,1759509046692,-500.0,0.00030136,2]
[388925541,1759509046703,-500.0,0.00030136,2]
[388925542,1759509046714,-500.0,0.00030136,2]
[388925543,1759509046724,-500.0,0.00030136,2]
[388925544,1759509046734,-500.0,0.00030136,2]
[388925545,1759509046744,-258.41561582,0.00030136,2]
[388925546,1759509046754,-500.0,0.00030136,120]
[388925547,1759509046763,-500.0,0.00030136,120]
[388925548,1759509046773,-500.0,0.00030136,120]
[388925549,1759509046785,-500.0,0.00030136,120]
[388925550,1759509046794,-500.0,0.00030136,120]
[388925551,1759509046804,-500.0,0.00030136,120]
[388925552,1759509046815,-500.0,0.00030136,120]
[388925553,1759509046828,-500.0,0.00030136,120]
[388925554,1759509046837,-500.0,0.00030136,120]
[388925555,1759509046848,-500.0,0.00030136,120]
[388925556,1759509046860,-500.0,0.00030136,120]
[388925557,1759509046874,-500.0,0.00030136,120]
[388925558,1759509046885,-500.0,0.00030136,120]
[388925559,1759509046895,-500.0,0.00030136,120]
[388925560,1759509046908,-500.0,0.00030136,120]
[388925561,1759509046918,-500.0,0.00030136,120]
[388925562,1759509046927,-500.0,0.00030136,120]
[388925563,1759509046937,-500.0,0.00030136,120]
[388925564,1759509046947,-500.46329961,0.00030136,120]
[388925565,1759509046957,-500.0,0.00030136,7]
[388925566,1759509046967,-500.0,0.00030136,7]
[388925567,1759509046977,-500.0,0.00030136,7]
[388925568,1759509046987,-500.0,0.00030136,7]
[388925569,1759509046998,-500.0,0.00030136,7]
[388925570,1759509047009,-500.0,0.00030136,7]
[388925571,1759509047018,-500.0,0.00030136,7]
[388925572,1759509047028,-500.0,0.00030136,7]
[388925573,1759509047039,-500.0,0.00030136,7]
[388925574,1759509047049,-500.0,0.00030136,7]
[388925575,1759509047059,-500.0,0.00030136,7]
[388925576,1759509047068,-500.0,0.00030136,7]
[388925577,1759509047078,-379.04970708,0.00030136,7]
[388925578,1759509047089,-500.0,0.00030136,120]
[388925579,1759509047100,-500.0,0.00030136,120]
[388925580,1759509047110,-500.0,0.00030136,120]
[388925581,1759509047120,-500.0,0.00030136,120]
[388925582,1759509047130,-500.0,0.00030136,120]
[388925583,1759509047140,-500.0,0.00030136,120]
[388925584,1759509047150,-500.0,0.00030136,120]
[388925585,1759509047160,-500.0,0.00030136,120]
[388925586,1759509047170,-500.0,0.00030136,120]
[388925587,1759509047180,-500.0,0.00030136,120]
[388925588,1759509047190,-500.0,0.00030136,120]
[388925589,1759509047200,-591.57947107,0.00030136,120]
[388925590,1759509047210,-3578.02,0.00030136,120]
[388925591,1759509047219,-3578.02,0.00030136,120]
[388925592,1759509047229,-500.0,0.00030136,120]
[388925593,1759509047239,-500.0,0.00030136,120]
[388925595,1759509047249,-500.0,0.00030136,120]
[388925596,1759509047259,-500.0,0.00030136,120]
[388925598,1759509047268,-500.0,0.00030136,120]
[388925600,1759509047277,-500.0,0.00030136,120]
[388925601,1759509047287,-500.0,0.00030136,120]
[388925603,1759509047297,-500.0,0.00030136,120]
[388925605,1759509047306,-634.35825382,0.00030136,120]
[388925607,1759509047316,-500.0,0.00030136,120]
[388925609,1759509047326,-500.0,0.00030136,120]
[388925611,1759509047335,-500.0,0.00030136,120]
[388925613,1759509047344,-500.0,0.00030136,120]
[388925615,1759509047354,-500.0,0.00030136,120]
[388925617,1759509047363,-500.0,0.00030136,120]
[388925619,1759509047375,-500.0,0.00030136,120]
[388925621,1759509047384,-569.36153062,0.00030136,120]
[388925623,1759509047393,-928.107871,0.00030137,120]
[388925625,1759509047403,-315.26225832,0.00030137,2]
[388925626,1759509047412,-234.2788304,0.00030137,120]
[388925629,1759509047422,-1322.84,0.00030137,30]
[388925631,1759509047433,-264.2578258,0.00030137,5]
[388925633,1759509047443,-500.0,0.00030138,2]
[388925635,1759509047452,-481.0,0.00030138,2]
[388925637,1759509047462,-500.0,0.00030152,10]
[388925638,1759509047471,-670.0,0.00030153,7]
[388925640,1759509047481,-1480.26948963,0.0003016,5]
[388925643,1759509047491,-3500.0,0.0003016,5]
[388925644,1759509047501,-29836.50370524,0.0003017,120]
[388925647,1759509047510,-159.02683154,0.0003017,120]
[388925648,1759509047520,-193.619592,0.0003017,7]
[388925650,1759509047530,-193.619592,0.0003017,7]
[388925652,1759509047540,-193.619592,0.0003017,7]
[388925655,1759509047550,-193.619601,0.0003017,7]
[388925656,1759509047560,-814.13170295,0.000302,2]
[388925659,1759509047574,-151.68826556,0.000302,2]
[388925661,1759509047584,-151.0,0.00030205,120]
[388925663,1759509047594,-3019.72529382,0.0003026,5]
[388925665,1759509047603,-1500.0,0.00030264,5]
[388925667,1759509047613,-2964.29394062,0.00030322,26]
[388925669,1759509047625,-2449.31201651,0.00030322,26]
[388925671,1759509047635,-184.68466906,0.0003034,2]
[388925673,1759509047645,-162.60506315,0.00030394,2]
[388925675,1759509047654,-156.74,0.00030405,15]
[388925677,1759509047664,-500.0,0.00030412,2]
[388925679,1759509047674,-481.0,0.00030412,2]
[388925681,1759509047684,-500.0,0.00030426,10]
[388925683,1759509047695,-31.48313653,0.00030462,30]
[388925685,1759509047707,-549.082058,0.00030462,30]
[388925688,1759509047719,-407.3004368,0.00030462,30]
[388925709,1759509048211,-1041.66666667,0.000274,7]
[388925712,1759509048226,-1041.66666667,0.0003,10]
[388925715,1759509048243,-12.13436867,0.00030462,30]
[388925717,1759509048257,-244.0,0.00030462,30]
[388925719,1759509048268,-775.49,0.00030492,15]
[388925721,1759509048280,-156.74,0.00030505,15]
[388925724,1759509048297,-156.74,0.00030505,15]
[388925726,1759509048311,-1000.0,0.00030521,5]
[388925729,1759509048323,-156.74,0.00030524,15]
[388925731,1759509048336,-775.49,0.00030592,15]
[388925733,1759509048349,-156.74,0.00030605,15]
[388925736,1759509048361,-156.74,0.00030605,15]
[388925738,1759509048374,-156.74,0.00030624,15]
[388925740,1759509048387,-199.0,0.00030684,14]
[388925743,1759509048400,-500.0,0.00030686,2]
[388925745,1759509048414,-481.0,0.00030686,2]
[388925747,1759509048425,-13174.57145772,0.00030688,2]
[388925749,1759509048438,-775.49,0.00030692,15]
[388925752,1759509048449,-500.0,0.000307,10]
[388925754,1759509048462,-1000.0,0.000307,120]
[388925756,1759509048475,-1000.0,0.000307,120]
[388925759,1759509048488,-1000.0,0.000307,120]
[388925761,1759509048501,-156.74,0.00030705,15]
[388925764,1759509048515,-156.74,0.00030705,15]
[388925766,1759509048528,-4000.0,0.00030708,5]
[388925768,1759509048541,-162.5876315,0.00030738,30]
[388925770,1759509048555,-297.3661479,0.00030738,30]
[388925771,1759509048568,-189.4176396,0.00030738,30]
[388925772,1759509048581,-153.0,0.00030738,30]
[388925773,1759509048593,-587.3710559,0.00030738,30]
[388925774,1759509048608,-189.4176396,0.00030738,30]
[388925775,1759509048622,-162.5876315,0.00030738,30]
[388925776,1759509048636,-327.4289409,0.00030738,30]
[388925777,1759509048649,-587.3710559,0.00030738,30]
[388925778,1759509048663,-155.5074701,0.00030738,30]
[388925779,1759509048677,-587.3710559,0.00030738,30]
[388925780,1759509048689,-297.2920934,0.00030738,30]
[388925781,1759509048702,-587.3710559,0.00030738,30]
[388925782,1759509048714,-587.3710559,0.00030738,30]
[388925783,1759509048727,-587.3710559,0.00030738,30]
[388925784,1759509048740,-539.796767,0.00030738,30]
[388925785,1759509048753,-46567.20516892,0.0003079,30]
[388925786,1759509048766,-775.49,0.00030792,15]
[388925787,1759509048779,-168.50936324,0.000308,120]
[388925788,1759509048792,-293.47406221,0.000308,30]
[388925789,1759509048804,-156.74,0.00030805,15]
[388925790,1759509048821,-156.74,0.00030805,15]
[388925791,1759509048837,-188.0,0.00030809,120]
[388925792,1759509048850,-1800.0,0.00030812,5]
[388925793,1759509048864,-775.49,0.00030892,15]
[388925794,1759509048879,-293.47406221,0.000309,10]
[388925795,1759509048894,-234.04758945,0.000309,10]
[388925796,1759509048907,-200.0,0.00030901,120]
[388925797,1759509048919,-200.0,0.00030901,120]
[388925798,1759509048931,-200.0,0.00030901,120]
[388925799,1759509048944,-200.0,0.00030901,120]
[388925800,1759509048959,-200.0,0.00030901,120]
[388925801,1759509048974,-200.0,0.00030901,120]
[388925802,1759509048987,-156.74,0.00030905,15]
[388925803,1759509049000,-54164.39727241,0.00030958,15]
[388925804,1759509049013,-500.0,0.0003096,2]
[388925805,1759509049025,-481.0,0.0003096,2]
[388925806,1759509049040,-500.0,0.00030974,10]
[388925807,1759509049053,-303.17872066,0.0003099,2]
[388925808,1759509049067,-775.49,0.00030992,15]
[388925809,1759509049079,-234.00747223,0.00031,120]
[388925810,1759509049093,-244.99,0.00031,120]
[388925811,1759509049107,-3208.52301167,0.00031,120]
[388925812,1759509049120,-160.0,0.00031,120]
[388925813,1759509049132,-293.47406221,0.00031,120]
[388925814,1759509049145,-234.04758945,0.00031,30]
[388925815,1759509049157,-1041.66666667,0.00031,30]
[388925816,1759509049169,-156.74,0.00031005,15]
[388925817,1759509049181,-154.79,0.00031067,15]
[388925818,1759509049194,-1299.31928083,0.00031068,5]
[388925819,1759509049206,-775.49,0.00031092,15]
[388925820,1759509049220,-151.0,0.000311,120]
[388925821,1759509049232,-156.74,0.00031105,15]
[388925822,1759509049244,-30000.0,0.0003112,2]
[388925823,1759509049257,-154.79,0.00031167,15]
[388925824,1759509049267,-775.49,0.00031192,15]
[388925825,1759509049277,-156.74,0.00031205,15]
[388925826,1759509049286,-326.3391301,0.00031232,15]
[388925827,1759509049296,-500.0,0.00031234,2]
[388925828,1759509049305,-481.0,0.00031234,2]
[388925829,1759509049314,-13174.57145772,0.00031245,2]
[388925830,1759509049324,-500.0,0.00031248,10]
[388925831,1759509049333,-4500.0,0.00031256,5]
[388925832,1759509049343,-154.79,0.00031267,15]
[388925833,1759509049353,-775.49,0.00031292,15]
[388925834,1759509049363,-156.75715952,0.00031305,15]
[388925835,1759509049374,-2100.0,0.0003136,5]
[388925836,1759509049384,-154.79,0.00031367,15]
[388925837,1759509049394,-2859.5,0.00031373,6]
[388925838,1759509049404,-775.49,0.00031392,15]
[388925839,1759509049413,-263280.55742396,0.0003144,2]
[388925840,1759509049426,-16738.66057512,0.0003144,2]
[388925841,1759509049437,-54013.34692114,0.0003144,2]
[388925842,1759509049675,-123362.4647132,0.0003144,2]
[388925843,1759509049722,-6150.0,0.0003144,2]
[388925844,1759509194296,10000.0,0.00025,30]
[388925845,1759509215632,3148.54,0.00025,30]
[388925852,1759509768156,694.909931,0.00016438,2]
[388925888,1759510232211,-350.60047145,0.00019487,2]
[388925994,1759510242597,-2167.04999998,0.00019487,2]
[388926554,1759510674682,18816.70905408,0.00018,3]
[388926557,1759510712355,2719.33,0.00026,60]
[388926576,1759510789145,5000.0,0.00018033,2]
[388926577,1759510804581,4349.33214765,0.00018033,2]
[388926578,1759510812706,5000.0,0.00018033,2]
[388926579,1759510819615,600.0,0.00018033,2]
[388926580,1759510834893,5000.0,0.00018033,2]
[388926581,1759510856970,5000.0,0.00018033,2]
[388926588,1759510865310,5000.0,0.00018033,2]
[388926589,1759510877192,300.0,0.00018,2]
[388926590,1759510888498,5000.0,0.00018033,2]
[388926591,1759510889245,300.0,0.00018,2]
[388926592,1759510900292,300.0,0.00018,2]
[388926593,1759510910704,5000.0,0.00018033,2]
[388926594,1759510910734,300.0,0.00018,2]
[388926596,1759510922363,300.0,0.00018,2]
[388926597,1759510932875,3120.37479642,0.00018033,2]
[388926598,1759510933664,300.0,0.00018,2]
[388926599,1759510938101,300.0,0.00018,2]
[388926601,1759510945016,300.0,0.00018,2]
[388926602,1759510948662,300.0,0.00018,2]
[388926603,1759510955608,300.0,0.00018,2]
[388926604,1759510959234,300.0,0.00018,2]
[388926605,1759511075471,5000.0,0.00018033,2]
[388926606,1759511097734,5000.0,0.00018033,2]
[388926607,1759511121527,5000.0,0.00018033,2]